fUST/lending_fUST_20250424
["ID","MTS","AMOUNT","RATE_DAILY","PERIOD"]
[358797831,1745442633788,-1580.86569624,0.00023934,5]
[358797832,1745442633798,-4312.36452794,0.00024,2]
[358797839,1745442638501,-568.60250939,0.00022214,2]
[358797840,1745442638514,-9237.25835902,0.00024,2]
[358797925,1745442640562,-162.0,0.00022,2]
[358797926,1745442640573,-162.0,0.00022192,2]
[358797927,1745442640583,-162.0,0.00023014,2]
[358797928,1745442640593,-12731.1723097,0.00024,2]
[358797929,1745442640604,-1000.0,0.00024,10]
[358797930,1745442640614,-1200.0,0.00024142,2]
[358797931,1745442640624,-271.63,0.0002428,6]
[358797932,1745442640634,-12573.79847128,0.0002431,2]
[358797933,1745442640644,-839.95942076,0.00024328,2]
[358797934,1745442640654,-823.0,0.00024432,2]
[358797935,1745442640664,-1000.0,0.00024689,2]
[358797936,1745442640674,-1000.0,0.00024689,2]
[358797937,1745442640684,-1000.0,0.00024689,2]
[358797938,1745442640695,-1000.0,0.00024689,2]
[358797939,1745442640705,-1000.0,0.00024689,2]
[358797940,1745442640715,-1000.0,0.00024689,2]
[358797941,1745442640725,-1000.0,0.00024689,2]
[358797942,1745442640735,-1000.0,0.00024689,2]
[358797943,1745442640745,-1580.86569624,0.00024693,5]
[358797944,1745442640755,-2721.1133436,0.00024775,2]
[358797945,1745442640764,-633.0,0.000248,2]
[358797946,1745442640774,-488.472846,0.000248,30]
[358797947,1745442640784,-500.0,0.00024873,2]
[358797948,1745442640795,-500.0,0.00024873,2]
[358797949,1745442640805,-500.0,0.00024873,2]
[358797950,1745442640816,-500.0,0.00024873,2]
[358797951,1745442640825,-500.0,0.00024873,2]
[358797952,1745442640835,-310.96249365,0.00024873,2]
[358797953,1745442640891,-189.03750635,0.00024873,2]
[358797954,1745442640901,-500.0,0.00024873,2]
[358797955,1745442640911,-500.0,0.00024873,2]
[358797956,1745442640921,-357.74849419,0.00024873,2]
[358797957,1745442640934,-142.25150581,0.00024873,2]
[358797958,1745442640944,-500.0,0.00024873,2]
[358797959,1745442640953,-257.74849419,0.00024873,2]
[358797987,1745442646220,-164.0,0.00024164,2]
[358797988,1745442646231,-242.25150581,0.00024873,2]
[358797989,1745442646240,-500.0,0.00024873,2]
[358797990,1745442646250,-331.17898971,0.00024873,2]
[358797991,1745442646275,-168.82101029,0.00024873,2]
[358797992,1745442646284,-185.75123,0.0002489,7]
[358797993,1745442646294,-185.75123,0.0002489,7]
[358797994,1745442646304,-200.0,0.0002489,10]
[358797995,1745442646313,-200.0,0.0002489,10]
[358797996,1745442646322,-177.946309,0.0002489,10]
[358797997,1745442646331,-160.0,0.000249,3]
[358797998,1745442646341,-692.20928271,0.000249,3]
[358797999,1745442646353,-11881.58918857,0.000249,3]
[358798001,1745442646362,-420.82143104,0.000249,3]
[358798002,1745442646371,-160.0,0.000249,3]
[358798003,1745442646381,-160.0,0.000249,3]
[358798004,1745442646390,-839.95942076,0.000249,3]
[358798005,1745442646400,-160.0,0.000249,3]
[358798006,1745442646410,-160.0,0.000249,3]
[358798007,1745442646419,-151.0,0.000249,7]
[358798008,1745442646429,-155.2608,0.000249,7]
[358798009,1745442646439,-157.354526,0.000249,7]
[358798010,1745442646449,-157.354526,0.000249,7]
[358798011,1745442646459,-157.354526,0.000249,7]
[358798012,1745442646470,-157.354526,0.000249,7]
[358798013,1745442646480,-650.63111793,0.000249,2]
[358798014,1745442646491,-151.0,0.000249,7]
[358798015,1745442646501,-151.0,0.000249,7]
[358798016,1745442646511,-250.0,0.000249,2]
[358798017,1745442646521,-250.0,0.000249,2]
[358798018,1745442646532,-345.0,0.000249,2]
[358798019,1745442646543,-155.101011,0.000249,7]
[358798020,1745442646554,-151.0,0.000249,7]
[358798021,1745442646564,-151.0,0.000249,7]
[358798022,1745442646573,-170.208953,0.000249,7]
[358798023,1745442646583,-170.208953,0.000249,7]
[358798024,1745442646593,-151.0,0.000249,7]
[358798025,1745442646603,-151.0,0.000249,7]
[358798026,1745442646614,-171.9933,0.000249,7]
[358798027,1745442646623,-171.9933,0.000249,7]
[358798028,1745442646633,-171.9933,0.000249,7]
[358798029,1745442646642,-171.9933,0.000249,7]
[358798030,1745442646652,-151.0,0.000249,7]
[358798031,1745442646662,-151.0,0.000249,7]
[358798032,1745442646673,-167.398754,0.000249,7]
[358798033,1745442646682,-181.642418,0.000249,7]
[358798034,1745442646692,-151.0,0.000249,7]
[358798035,1745442646702,-151.0,0.000249,7]
[358798036,1745442646712,-151.0,0.000249,7]
[358798037,1745442646722,-151.0,0.000249,7]
[358798038,1745442646732,-151.0,0.000249,7]
[358798039,1745442646742,-26.4271487,0.000249,7]
[358798042,1745442720471,1000.0,0.00017916,2]
[358798049,1745442923506,-160.35266277,0.00018756,2]
[358798052,1745443026371,-330.8317618,0.00018755,2]
[358798053,1745443027027,-11.17733111,0.00018755,2]
[358798054,1745443027311,-471.65443069,0.00018755,2]
[358798055,1745443064422,-209.23651307,0.00018655,2]
[358798061,1745443458688,-283.9153967,0.00018652,2]
[358798075,1745443472044,-264.3595,0.00018046,2]
[358798087,1745443655422,-235.6405,0.0001865,2]
[358798099,1745443824965,-167.87915365,0.0001855,2]
[358798112,1745443832320,-832.12084635,0.0001855,2]
[358798114,1745443832330,-300.0,0.00018748,2]
[358798115,1745443832340,-900.0,0.00018748,2]
[358798116,1745443832351,-500.0,0.00018749,2]
[358798117,1745443832360,-500.0,0.00018749,2]
[358798118,1745443832371,-500.0,0.00018749,2]
[358798119,1745443832380,-441.23306852,0.00018749,2]
[358798120,1745443832393,-58.76693148,0.00018749,2]
[358798121,1745443832403,-500.0,0.00018749,2]
[358798122,1745443832412,-223.6550668,0.00018749,2]
[358798123,1745443832423,-500.0,0.00018749,2]
[358798124,1745443832433,-500.0,0.00018749,2]
[358798125,1745443832443,-518.38829592,0.00018749,2]
[358798126,1745443832452,-500.0,0.00018749,2]
[358798128,1745443832463,-500.0,0.00018749,2]
[358798130,1745443832473,-500.0,0.00018749,2]
[358798133,1745443832482,-500.0,0.00018749,2]
[358798135,1745443832492,-500.0,0.00018749,2]
[358798137,1745443832502,-500.0,0.00018749,2]
[358798139,1745443832511,-500.0,0.00018749,2]
[358798143,1745443832522,-500.0,0.00018749,2]
[358798145,1745443832532,-500.0,0.00018749,2]
[358798147,1745443832542,-500.0,0.00018749,2]
[358798149,1745443832552,-500.0,0.00018749,2]
[358798151,1745443832561,-500.0,0.00018749,2]
[358798153,1745443832570,-181.36580639,0.00018749,2]
[358798155,1745443832582,-318.63419361,0.00018749,2]
[358798157,1745443832592,-2212.67620351,0.00018756,2]
[358798159,1745443832601,-500.0,0.00018773,2]
[358798161,1745443832610,-500.0,0.00018773,2]
[358798163,1745443832620,-500.0,0.00018773,2]
[358798165,1745443832629,-500.0,0.00018773,2]
[358798167,1745443832639,-160.0,0.00018831,2]
[358798169,1745443832648,-221.49783183,0.000189,2]
[358798171,1745443832658,-160.2970435,0.00019278,2]
[358798173,1745443832668,-152.0,0.00019407,2]
[358798175,1745443832677,-500.0,0.00019944,2]
[358798177,1745443832687,-192.39098112,0.00019944,2]
[358798179,1745443832696,-839.95942076,0.00019987,2]
[358798181,1745443832706,-160.0,0.00019988,2]
[358798183,1745443832717,-420.82143104,0.00019988,2]
[358798184,1745443832726,-160.0,0.00019988,2]
[358798185,1745443832736,-12573.79847128,0.00019988,2]
[358798186,1745443832745,-160.0,0.00019988,2]
[358798187,1745443832754,-500.0,0.0002,2]
[358798189,1745443832763,-1410.37370451,0.000201,2]
[358798191,1745443832773,-1979.2117311,0.00020161,2]
[358798193,1745443832782,-420.0,0.0002044,2]
[358798195,1745443832792,-303.0,0.0002054,2]
[358798196,1745443832802,-200.0848344,0.00020551,2]
[358798197,1745443832811,-1410.3737045,0.00020693,2]
[358798198,1745443832821,-157.04,0.00021,2]
[358798199,1745443832830,-1410.3737045,0.00021486,3]
[358798200,1745443832840,-191.395883,0.00021918,2]
[358798201,1745443832850,-1637.89,0.000221,2]
[358798202,1745443832860,-1410.3737045,0.00022279,3]
[358798203,1745443832870,-587.0,0.00022286,2]
[358798204,1745443832879,-544.0,0.00022623,2]
[358798205,1745443832889,-403.0,0.00022623,2]
[358798206,1745443832899,-403.0,0.00022623,2]
[358798207,1745443832908,-197.2134218,0.00022898,2]
[358798208,1745443832918,-3141.7,0.00023072,4]
[358798209,1745443832927,-1410.3737045,0.00023072,4]
[358798210,1745443832937,-162.594617,0.00023408,3]
[358798211,1745443832946,-151.0,0.00023655,2]
[358798212,1745443832955,-207.4,0.00023655,2]
[358798213,1745443832965,-1410.3737045,0.00023866,5]
[358798214,1745443832974,-165.287178,0.00023868,2]
[358798215,1745443832983,-221.49783183,0.000239,2]
[358798216,1745443832993,-165.287178,0.00023908,2]
[358798217,1745443833002,-165.287178,0.00023947,2]
[358798218,1745443833011,-165.287178,0.00023987,2]
[358798219,1745443833021,-1000.0,0.00024252,2]
[358798220,1745443833031,-1000.0,0.00024252,2]
[358798221,1745443833041,-1000.0,0.00024252,2]
[358798222,1745443833051,-1000.0,0.00024252,2]
[358798223,1745443833062,-823.0,0.00024298,2]
[358798224,1745443833072,-217.304,0.00024313,6]
[358798225,1745443833082,-500.0,0.000246,2]
[358798226,1745443833092,-1691.5729598,0.00024629,2]
[358798227,1745443833102,-596.68483522,0.0002463,2]
[358798228,1745443833112,-153.0,0.0002463,2]
[358798229,1745443833123,-153.0,0.0002463,2]
[358798230,1745443833136,-153.0,0.0002463,2]
[358798231,1745443833146,-153.0,0.0002463,2]
[358798232,1745443833156,-1410.3737045,0.00024659,5]
[358798233,1745443833166,-596.68483521,0.00024673,2]
[358798234,1745443833178,-596.68483521,0.00024715,2]
[358798235,1745443833187,-470.59,0.0002472,3]
[358798236,1745443833199,-268.91,0.0002472,3]
[358798237,1745443833210,-806.75,0.0002472,3]
[358798238,1745443833220,-605.09,0.0002472,3]
[358798239,1745443833230,-1538.0683429,0.00024727,2]
[358798240,1745443833239,-160.0,0.00024729,3]
[358798241,1745443833249,-31443.91837678,0.00024729,2]
[358798242,1745443833530,-434.89445479,0.00024729,2]
[358798500,1745443841079,-9607.73105547,0.00024729,2]
[358798519,1745443841247,-184290.54055049,0.00024729,2]
[358798521,1745443841257,-99199.49905417,0.00024729,3]
[358798609,1745443843383,-6468.0620152,0.00024729,3]
[358798610,1745443843394,-839.95942076,0.0002473,3]
[358798611,1745443843404,-160.0,0.0002473,3]
[358798612,1745443843414,-160.0,0.0002473,3]
[358798613,1745443843425,-12573.79847128,0.0002473,3]
[358798614,1745443843435,-160.0,0.0002473,3]
[358798615,1745443843445,-420.82143104,0.0002473,3]
[358798616,1745443843456,-19083.1040337,0.0002473,2]
[358798636,1745444329875,185.429995,0.00017968,2]
[358798657,1745444596386,-229.49439323,0.00018642,2]
[358798659,1745444616507,24900.0,0.00017873,2]
[358798660,1745444617089,-238.33226073,0.00018642,2]
[358798677,1745444833963,-349.68665718,0.00018673,2]
[358798679,1745444893871,-170.22687027,0.00018638,2]
[358798681,1745444897236,-188.21547648,0.00018673,2]
[358798682,1745444913424,-358.44234675,0.00018672,2]
[358798686,1745444943580,-152.68707532,0.00018671,2]
[358798688,1745445001193,-252.9808,0.0001867,2]
[358798691,1745445012362,-178.96155116,0.00018669,2]
[358798692,1745445029043,-667.27015239,0.00018572,2]
[358798706,1745445033005,-538.35337251,0.00018572,2]
[358798707,1745445033015,-121.03844884,0.00018669,2]
[358798708,1745445033025,-900.0,0.00018669,2]
[358798709,1745445033035,-500.0,0.00018669,2]
[358798710,1745445033044,-160.42395375,0.00018669,2]
[358798711,1745445033054,-55302.90011343,0.0001867,2]
[358798712,1745445033063,-50000.0,0.00018672,2]
[358798713,1745445033072,-500.0,0.00018743,2]
[358798714,1745445033082,-500.0,0.00018743,2]
[358798715,1745445033091,-500.0,0.00018743,2]
[358798716,1745445033101,-500.0,0.00018773,2]
[358798717,1745445033111,-500.0,0.00018773,2]
[358798718,1745445033120,-500.0,0.00018773,2]
[358798719,1745445033130,-500.0,0.00018773,2]
[358798720,1745445033139,-500.0,0.00018773,2]
[358798721,1745445033148,-500.0,0.00018773,2]
[358798722,1745445033158,-500.0,0.00018773,2]
[358798723,1745445033168,-500.0,0.00018773,2]
[358798724,1745445033177,-209.3238818,0.000189,2]
[358798725,1745445033187,-239.16433528,0.00019178,2]
[358798726,1745445033197,-300.0,0.00019178,2]
[358798727,1745445033207,-152.0,0.0001942,2]
[358798728,1745445033217,-160.0,0.00020011,2]
[358798729,1745445033226,-420.0,0.00020356,2]
[358798730,1745445033236,-540.0,0.00020455,2]
[358798731,1745445033245,-600.0,0.00020822,2]
[358798732,1745445033255,-250.0,0.00021196,2]
[358798733,1745445033266,-7894.501921,0.00021295,2]
[358798734,1745445033275,-191.395883,0.00021918,2]
[358798735,1745445033285,-1474.1,0.000221,2]
[358798736,1745445033295,-627.4848976,0.00022186,2]
[358798737,1745445033304,-587.0,0.00022196,2]
[358798738,1745445033314,-900.0,0.00022466,2]
[358798739,1745445033324,-2246.0,0.00023096,2]
[358798740,1745445033334,-706.0,0.00023096,2]
[358798741,1745445033344,-545.378,0.00023096,2]
[358798742,1745445033353,-239.822,0.00023096,2]
[358798743,1745445033363,-403.0,0.00023096,2]
[358798744,1745445033372,-151.0,0.00023655,2]
[358798745,1745445033383,-207.4,0.00023655,2]
[358798746,1745445033392,-2944.8955125,0.0002373,2]
[358798747,1745445033401,-209.3238818,0.000239,2]
[358798748,1745445033410,-376.80795058,0.00024109,2]
[358798749,1745445033420,-1200.0,0.0002411,2]
[358798750,1745445033430,-823.0,0.00024201,2]
[358798751,1745445033439,-887.50058547,0.00024222,2]
[358798752,1745445033448,-1000.0,0.00024222,2]
[358798753,1745445033458,-1000.0,0.00024222,2]
[358798754,1745445033467,-994.45107044,0.00024252,2]
[358798755,1745445033477,-1000.0,0.00024252,2]
[358798756,1745445033487,-1000.0,0.00024252,2]
[358798757,1745445033500,-1000.0,0.00024252,2]
[358798758,1745445033510,-1000.0,0.00024252,2]
[358798759,1745445033519,-1000.0,0.00024252,2]
[358798760,1745445033528,-1000.0,0.00024252,2]
[358798761,1745445033538,-1000.0,0.00024252,2]
[358798762,1745445033548,-173.843,0.00024339,6]
[358798763,1745445033557,-160.0,0.00024485,2]
[358798764,1745445033567,-420.82143104,0.00024485,2]
[358798765,1745445033578,-12573.79847128,0.00024493,2]
[358798766,1745445033588,-839.95942076,0.00024493,2]
[358798767,1745445033598,-160.0,0.00024585,2]
[358798768,1745445033608,-789.63947391,0.00024629,2]
[358798769,1745445033618,-642.87593813,0.0002463,2]
[358798770,1745445033627,-153.0,0.0002463,2]
[358798771,1745445033637,-153.0,0.0002463,2]
[358798772,1745445033646,-153.0,0.0002463,2]
[358798773,1745445033656,-153.0,0.0002463,2]
[358798774,1745445033665,-153.0,0.0002463,2]
[358798775,1745445033675,-153.0,0.0002463,2]
[358798776,1745445033685,-153.0,0.0002463,2]
[358798777,1745445033694,-153.0,0.0002463,2]
[358798778,1745445033704,-3061.1898354,0.0002465,2]
[358798779,1745445033715,-642.87593812,0.00024673,2]
[358798780,1745445033725,-642.87593812,0.00024715,2]
[358798781,1745445033734,-246.5,0.0002472,3]
[358798782,1745445033744,-739.5,0.0002472,3]
[358798783,1745445033755,-88808.22332087,0.0002473,2]
[358798784,1745445033764,-151.0,0.0002473,7]
[358798785,1745445033774,-151.0,0.0002473,7]
[358798786,1745445033784,-214.190895,0.0002473,7]
[358798787,1745445033794,-214.190895,0.0002473,7]
[358798788,1745445033803,-151.0,0.0002473,7]
[358798789,1745445033814,-151.0,0.0002473,7]
[358798790,1745445033824,-260.549796,0.0002473,7]
[358798791,1745445033834,-260.549796,0.0002473,7]
[358798792,1745445033843,-151.0,0.0002473,7]
[358798793,1745445033853,-362.067018,0.0002473,7]
[358798794,1745445033863,-362.067018,0.0002473,7]
[358798795,1745445033873,-934.781782,0.0002473,7]
[358798796,1745445033883,-934.781782,0.0002473,7]
[358798797,1745445033893,-151.0,0.0002473,7]
[358798798,1745445033902,-642.87593812,0.00024758,2]
[358798799,1745445033913,-500.0,0.00024773,2]
[358798800,1745445033922,-500.0,0.00024773,2]
[358798801,1745445033932,-500.0,0.00024773,2]
[358798802,1745445033942,-500.0,0.00024773,2]
[358798803,1745445033953,-500.0,0.00024773,2]
[358798804,1745445033963,-500.0,0.00024773,2]
[358798805,1745445033972,-500.0,0.00024773,2]
[358798806,1745445033983,-318.0490392,0.00024773,2]
[358798807,1745445033993,-500.0,0.00024773,2]
[358798808,1745445034003,-500.0,0.00024773,2]
[358798809,1745445034013,-500.0,0.00024773,2]
[358798810,1745445034023,-505.78298939,0.00024773,2]
[358798811,1745445034033,-500.0,0.00024773,2]
[358798812,1745445034043,-151.0,0.000248,7]
[358798813,1745445034054,-151.0,0.000248,7]
[358798814,1745445034064,-151.0,0.000248,7]
[358798815,1745445034074,-260.549796,0.000248,7]
[358798816,1745445034083,-260.549796,0.000248,7]
[358798817,1745445034093,-362.067018,0.000248,7]
[358798818,1745445034103,-362.067018,0.000248,7]
[358798819,1745445034112,-934.781782,0.000248,7]
[358798820,1745445034122,-934.781782,0.000248,7]
[358798821,1745445034133,-633.0,0.000248,2]
[358798822,1745445034142,-642.87593812,0.000248,2]
[358798823,1745445034152,-47400.4904007,0.000248,2]
[358798824,1745445034163,-11850.1226002,0.00024864,2]
[358798825,1745445034173,-500.0,0.00024873,2]
[358798826,1745445034183,-500.0,0.00024873,2]
[358798827,1745445034193,-500.0,0.00024873,2]
[358798828,1745445034203,-500.0,0.00024873,2]
[358798829,1745445034212,-500.0,0.00024873,2]
[358798830,1745445034222,-500.0,0.00024873,2]
[358798831,1745445034232,-500.0,0.00024873,2]
[358798832,1745445034242,-500.0,0.00024873,2]
[358798833,1745445034252,-500.0,0.00024873,2]
[358798834,1745445034261,-500.0,0.00024873,2]
[358798835,1745445034271,-500.0,0.00024873,2]
[358798836,1745445034281,-530.24391926,0.00024873,2]
[358798837,1745445034290,-500.0,0.00024873,2]
[358798838,1745445034300,-398.61186875,0.00024873,2]
[358798839,1745445034310,-500.0,0.00024873,2]
[358798840,1745445034320,-502.18756215,0.00024873,2]
[358798841,1745445034331,-5619.72037878,0.00024874,2]
[358798842,1745445034341,-5619.72037878,0.00024874,2]
[358798843,1745445034530,-5619.72037878,0.00024875,2]
[358798844,1745445034541,-5619.72037878,0.00024888,2]
[358798845,1745445034552,-21184.85140128,0.0002489,2]
[358798846,1745445034584,-38065.76159962,0.0002489,2]
[358798847,1745445034596,-160.0,0.0002489,3]
[358798848,1745445034606,-151.0,0.0002489,7]
[358798849,1745445034616,-151.0,0.0002489,7]
[358798850,1745445034626,-151.0,0.0002489,7]
[358798851,1745445034636,-151.0,0.0002489,7]
[358798852,1745445034647,-151.0,0.0002489,7]
[358798853,1745445034657,-151.0,0.0002489,7]
[358798854,1745445034667,-151.0,0.0002489,7]
[358798855,1745445034677,-151.0,0.0002489,7]
[358798856,1745445034687,-151.0,0.0002489,7]
[358798857,1745445034697,-151.0,0.0002489,7]
[358798858,1745445034706,-151.0,0.0002489,7]
[358798859,1745445034716,-151.0,0.0002489,7]
[358798860,1745445034726,-151.0,0.0002489,7]
[358798861,1745445034735,-160.0,0.0002489,7]
[358798862,1745445034745,-839.95942076,0.0002489,7]
[358798863,1745445034755,-160.0,0.0002489,7]
[358798864,1745445034764,-215.022279,0.0002489,7]
[358798865,1745445034774,-215.022279,0.0002489,7]
[358798866,1745445034784,-12573.79847128,0.0002489,7]
[358798867,1745445034794,-215.022279,0.0002489,7]
[358798868,1745445034804,-215.022279,0.0002489,7]
[358798869,1745445034814,-160.0,0.0002489,7]
[358798870,1745445034823,-151.0,0.0002489,7]
[358798871,1745445034833,-151.0,0.0002489,7]
[358798872,1745445034843,-420.82143104,0.0002489,7]
[358798873,1745445034852,-24571.11008727,0.00024899,3]
[358798874,1745445035715,-160.7133882,0.00018669,2]
[358798884,1745445038417,-339.2866118,0.00018669,2]
[358798885,1745445038427,-500.0,0.00018669,2]
[358798886,1745445038437,-500.0,0.00018669,2]
[358798887,1745445038447,-500.0,0.00018669,2]
[358798888,1745445038456,-500.0,0.00018669,2]
[358798889,1745445038465,-500.0,0.00018669,2]
[358798890,1745445038475,-217.27278331,0.00018669,2]
[358798891,1745445038485,-500.0,0.00018669,2]
[358798892,1745445038496,-500.0,0.00018669,2]
[358798893,1745445038506,-500.0,0.00018669,2]
[358798894,1745445038516,-500.0,0.00018669,2]
[358798895,1745445038525,-500.0,0.00018669,2]
[358798896,1745445038536,-500.0,0.00018669,2]
[358798897,1745445038545,-500.0,0.00018669,2]
[358798898,1745445038554,-500.0,0.00018669,2]
[358798899,1745445038563,-500.0,0.00018669,2]
[358798900,1745445038574,-500.0,0.00018669,2]
[358798901,1745445038583,-500.0,0.00018669,2]
[358798902,1745445038592,-500.0,0.00018669,2]
[358798903,1745445038602,-324.61155146,0.00018669,2]
[358798904,1745445038611,-500.0,0.00018669,2]
[358798905,1745445038621,-500.0,0.00018669,2]
[358798906,1745445038631,-554.19731242,0.00018669,2]
[358798907,1745445038640,-1205.6235249,0.00021957,2]
[358798908,1745445038650,-160.0,0.00024485,2]
[358798909,1745445038660,-28262.67044742,0.00024899,3]
[358798910,1745445038669,-132424.80704277,0.00024899,2]
[358798911,1745445038678,-839.95942076,0.000249,3]
[358798912,1745445038687,-160.0,0.000249,3]
[358798913,1745445038697,-12573.79847128,0.000249,3]
[358798914,1745445038706,-160.0,0.000249,3]
[358798915,1745445038715,-160.0,0.000249,3]
[358798916,1745445038724,-420.82143104,0.000249,3]
[358798917,1745445038733,-151.0,0.000249,7]
[358798918,1745445038743,-151.0,0.000249,7]
[358798919,1745445038752,-151.0,0.000249,2]
[358798920,1745445038761,-151.0,0.000249,2]
[358798921,1745445038771,-151.0,0.000249,7]
[358798922,1745445038780,-151.0,0.000249,7]
[358798923,1745445038789,-151.0,0.000249,7]
[358798924,1745445038798,-151.0,0.000249,7]
[358798925,1745445038807,-151.0,0.000249,7]
[358798926,1745445038817,-151.0,0.000249,7]
[358798927,1745445038827,-151.0,0.000249,7]
[358798928,1745445038836,-386.122401,0.000249,7]
[358798929,1745445038845,-386.122401,0.000249,7]
[358798930,1745445038854,-386.122401,0.000249,7]
[358798931,1745445038863,-386.122401,0.000249,7]
[358798932,1745445038872,-197.668748,0.000249,7]
[358798933,1745445038882,-197.668748,0.000249,7]
[358798934,1745445038891,-197.668748,0.000249,7]
[358798935,1745445038900,-151.0,0.000249,7]
[358798936,1745445038909,-197.668748,0.000249,7]
[358798937,1745445038918,-151.820212,0.000249,7]
[358798938,1745445038927,-151.0,0.000249,7]
[358798939,1745445038936,-151.0,0.000249,7]
[358798940,1745445038945,-165.85475,0.000249,7]
[358798941,1745445038954,-165.85475,0.000249,7]
[358798942,1745445038963,-151.0,0.000249,7]
[358798943,1745445038972,-214.190895,0.000249,7]
[358798944,1745445038982,-214.190895,0.000249,7]
[358798945,1745445038990,-214.190895,0.000249,7]
[358798946,1745445039000,-214.190895,0.000249,7]
[358798947,1745445039009,-151.0,0.000249,7]
[358798948,1745445039018,-273.526215,0.000249,7]
[358798949,1745445039028,-151.0,0.000249,7]
[358798950,1745445039038,-151.0,0.000249,7]
[358798951,1745445039047,-260.549796,0.000249,7]
[358798952,1745445039056,-213.087188,0.000249,7]
[358798953,1745445039066,-260.549796,0.000249,7]
[358798954,1745445039076,-362.067018,0.000249,7]
[358798955,1745445039085,-151.0,0.000249,7]
[358798957,1745445039094,-362.067018,0.000249,7]
[358798959,1745445039103,-151.0,0.000249,7]
[358798961,1745445039113,-151.0,0.000249,7]
[358798963,1745445039122,-162.455863,0.000249,2]
[358798965,1745445039132,-162.455863,0.000249,2]
[358798967,1745445039142,-934.781782,0.000249,7]
[358798969,1745445039151,-162.455863,0.000249,2]
[358798971,1745445039160,-162.455863,0.000249,2]
[358798973,1745445039170,-934.781782,0.000249,7]
[358798975,1745445039180,-151.0,0.000249,7]
[358798977,1745445039189,-151.0,0.000249,7]
[358798979,1745445039198,-151.0,0.000249,7]
[358798980,1745445039208,-151.0,0.000249,7]
[358798983,1745445039218,-172.560298,0.000249,7]
[358798984,1745445039227,-172.560298,0.000249,7]
[358798986,1745445039237,-151.0,0.000249,7]
[358798988,1745445039246,-151.0,0.000249,7]
[358798990,1745445039256,-151.0,0.000249,7]
[358798992,1745445039266,-151.0,0.000249,7]
[358798994,1745445039275,-151.0,0.000249,7]
[358798996,1745445039285,-151.0,0.000249,7]
[358798998,1745445039295,-151.0,0.000249,7]
[358799000,1745445039305,-151.0,0.000249,7]
[358799002,1745445039314,-477.3527,0.000249,2]
[358799005,1745445039324,-151.0,0.000249,7]
[358799007,1745445039334,-215.022279,0.000249,7]
[358799009,1745445039344,-215.022279,0.000249,7]
[358799011,1745445039353,-58929.10834036,0.000249,2]
[358799016,1745445039395,-3647.92052878,0.000249,2]
[358799143,1745445043673,-2448.9518683,0.0002465,2]
[358799144,1745445043683,-633923.51507486,0.000249,2]
[358799145,1745445043693,-151.0,0.000249,7]
[358799146,1745445043703,-153.188058,0.000249,7]
[358799147,1745445043712,-153.188058,0.000249,7]
[358799148,1745445043723,-386.122401,0.00024969,7]
[358799149,1745445043733,-386.122401,0.00024969,7]
[358799150,1745445043742,-197.668748,0.00024969,7]
[358799151,1745445043753,-197.668748,0.00024969,7]
[358799152,1745445043763,-151.0,0.00024969,7]